[Event "Titled Tuesday Blitz March 01 Late 2022"]
[White "Ibadov, Dashgyn"]
[Black "Gatterer, Florian"]
[WhiteFideId "24107514"]
[BlackFideId "811688"]
[WhiteElo "2084"]
[BlackElo "2218"]
[Result "1-0"]
[Round "04"]
[TimeControl "180+1"]
[Date "2022.03.02"]
[WhiteClock "0:00:44"]
[BlackClock "0:00:33"]

1. e4 {[%clk 0:03:00]}  e5 {[%clk 0:02:59]} 2. Nf3 {[%clk 0:03:00]}  Nf6 {[%clk 0:02:58]} 3. d4 {[%clk 0:03:00]}  Nxe4 {[%clk 0:02:56]} 4. Bd3 {[%clk 0:02:57]}  d5 {[%clk 0:02:54]} 5. Nxe5 {[%clk 0:02:53]}  Bd6 {[%clk 0:02:50]} 6. Nd2 {[%clk 0:02:48]}  Nxd2 {[%clk 0:02:31]} 7. Bxd2 {[%clk 0:02:47]}  O-O {[%clk 0:02:28]} 8. O-O {[%clk 0:02:46]}  Nd7 {[%clk 0:02:27]} 9. Nxd7 {[%clk 0:02:25]}  Bxd7 {[%clk 0:02:24]} 10. c3 {[%clk 0:02:17]}  c6 {[%clk 0:02:20]} 11. Qh5 {[%clk 0:02:15]}  g6 {[%clk 0:02:19]} 12. Qf3 {[%clk 0:02:16]}  f5 {[%clk 0:02:15]} 13. Bf4 {[%clk 0:02:14]}  Qc7 {[%clk 0:02:13]} 14. Bxd6 {[%clk 0:02:14]}  Qxd6 {[%clk 0:02:13]} 15. Rae1 {[%clk 0:02:12]}  Rae8 {[%clk 0:02:13]} 16. g3 {[%clk 0:02:10]}  Rxe1 {[%clk 0:02:11]} 17. Rxe1 {[%clk 0:02:10]}  Re8 {[%clk 0:02:11]} 18. Rxe8+ {[%clk 0:02:09]}  Bxe8 {[%clk 0:02:11]} 19. Qe3 {[%clk 0:02:06]}  Bf7 {[%clk 0:02:05]} 20. h4 {[%clk 0:02:05]}  Qe6 {[%clk 0:02:04]} 21. Qf4 {[%clk 0:02:03]}  Qe1+ {[%clk 0:01:53]} 22. Kg2 {[%clk 0:02:03]}  Qd1 {[%clk 0:01:52]} 23. Qb8+ {[%clk 0:01:54]}  Kg7 {[%clk 0:01:51]} 24. Qe5+ {[%clk 0:01:54]}  Kg8 {[%clk 0:01:48]} 25. Be2 {[%clk 0:01:33]}  Qd2 {[%clk 0:01:37]} 26. h5 {[%clk 0:01:32]}  gxh5 {[%clk 0:01:30]} 27. Bf3 {[%clk 0:01:22]}  Qxb2 {[%clk 0:01:29]} 28. Qxf5 {[%clk 0:01:20]}  Qxc3 {[%clk 0:01:26]} 29. Qg5+ {[%clk 0:01:12]}  Kf8 {[%clk 0:01:16]} 30. Qd8+ {[%clk 0:01:10]}  Kg7 {[%clk 0:01:13]} 31. Qg5+ {[%clk 0:01:09]}  Kf8 {[%clk 0:01:13]} 32. Qf6 {[%clk 0:01:04]}  Kg8 {[%clk 0:01:04]} 33. Qe5 {[%clk 0:01:02]}  Bg6 {[%clk 0:00:55]} 34. Qb8+ {[%clk 0:01:01]}  Kg7 {[%clk 0:00:53]} 35. Qxb7+ {[%clk 0:01:01]}  Kh6 {[%clk 0:00:52]} 36. Qxa7 {[%clk 0:00:58]}  h4 {[%clk 0:00:51]} 37. gxh4 {[%clk 0:00:55]}  Qd2 {[%clk 0:00:43]} 38. Qe7 {[%clk 0:00:43]}  Qxd4 {[%clk 0:00:40]} 39. Qf8+ {[%clk 0:00:43]}  Qg7 {[%clk 0:00:33]} 40. Qf4# {[%clk 0:00:44]} 1-0


[Site "https://www.chess.com"]

[Event "Titled Tuesday Blitz March 01 Late 2022"]
[White "Ibarra Jerez, Jose Carlos"]
[Black "Kanyamarala, Tarun"]
[WhiteFideId "2226332"]
[BlackFideId "45004714"]
[WhiteElo "2626"]
[BlackElo "2144"]
[Result "1-0"]
[Round "04"]
[TimeControl "180+1"]
[Date "2022.03.01"]
[WhiteClock "0:00:05"]
[BlackClock "0:00:01"]

1. e4 {[%clk 0:03:00]}  c5 {[%clk 0:02:59]} 2. Nc3 {[%clk 0:03:00]}  Nc6 {[%clk 0:03:00]} 3. Nge2 {[%clk 0:02:59]}  Nf6 {[%clk 0:02:57]} 4. d4 {[%clk 0:02:59]}  cxd4 {[%clk 0:02:57]} 5. Nxd4 {[%clk 0:03:00]}  e5 {[%clk 0:02:57]} 6. Ndb5 {[%clk 0:03:00]}  d6 {[%clk 0:02:58]} 7. Bg5 {[%clk 0:03:00]}  a6 {[%clk 0:02:58]} 8. Na3 {[%clk 0:03:00]}  b5 {[%clk 0:02:59]} 9. Bxf6 {[%clk 0:03:00]}  gxf6 {[%clk 0:02:59]} 10. Nd5 {[%clk 0:03:00]}  Bg7 {[%clk 0:02:58]} 11. g3 {[%clk 0:03:00]}  Ne7 {[%clk 0:02:54]} 12. Nxe7 {[%clk 0:02:58]}  Qxe7 {[%clk 0:02:54]} 13. Bg2 {[%clk 0:02:57]}  d5 {[%clk 0:02:54]} 14. O-O {[%clk 0:02:31]}  O-O {[%clk 0:02:52]} 15. c3 {[%clk 0:02:23]}  dxe4 {[%clk 0:02:26]} 16. Bxe4 {[%clk 0:02:21]}  Bb7 {[%clk 0:02:26]} 17. Bxb7 {[%clk 0:02:06]}  Qxb7 {[%clk 0:02:27]} 18. Qg4 {[%clk 0:02:06]}  Rad8 {[%clk 0:02:21]} 19. Nc2 {[%clk 0:02:05]}  Qd7 {[%clk 0:02:17]} 20. Qh5 {[%clk 0:01:58]}  Qd3 {[%clk 0:01:53]} 21. Ne3 {[%clk 0:01:56]}  Qg6 {[%clk 0:01:51]} 22. Qh3 {[%clk 0:01:47]}  Qh6 {[%clk 0:01:37]} 23. Qxh6 {[%clk 0:01:33]}  Bxh6 {[%clk 0:01:36]} 24. Nf5 {[%clk 0:01:33]}  Bd2 {[%clk 0:01:33]} 25. Rad1 {[%clk 0:01:27]}  Rd7 {[%clk 0:01:24]} 26. f3 {[%clk 0:01:16]}  Rfd8 {[%clk 0:01:21]} 27. Kg2 {[%clk 0:01:00]}  a5 {[%clk 0:01:00]} 28. Rf2 {[%clk 0:00:52]}  h5 {[%clk 0:00:42]} 29. Re2 {[%clk 0:00:16]}  Kh7 {[%clk 0:00:41]} 30. Ne7 {[%clk 0:00:15]}  Bxc3 {[%clk 0:00:30]} 31. Rxd7 {[%clk 0:00:13]}  Rxd7 {[%clk 0:00:30]} 32. Nc6 {[%clk 0:00:13]}  Bd2 {[%clk 0:00:22]} 33. Nb8 {[%clk 0:00:10]}  Rd6 {[%clk 0:00:21]} 34. Kf2 {[%clk 0:00:06]}  Bb4 {[%clk 0:00:20]} 35. Rc2 {[%clk 0:00:06]}  f5 {[%clk 0:00:12]} 36. Nc6 {[%clk 0:00:05]}  e4 {[%clk 0:00:09]} 37. a3 {[%clk 0:00:05]}  Bd2 {[%clk 0:00:07]} 38. Ke2 {[%clk 0:00:04]}  e3 {[%clk 0:00:06]} 39. f4 {[%clk 0:00:04]}  h4 {[%clk 0:00:06]} 40. Ne5 {[%clk 0:00:04]}  hxg3 {[%clk 0:00:06]} 41. hxg3 {[%clk 0:00:05]}  f6 {[%clk 0:00:06]} 42. Nf3 {[%clk 0:00:05]}  Kg6 {[%clk 0:00:06]} 43. Nh4+ {[%clk 0:00:03]}  Kh5 {[%clk 0:00:05]} 44. Nxf5 {[%clk 0:00:04]}  Rd5 {[%clk 0:00:05]} 45. Nxe3 {[%clk 0:00:04]}  Bxe3 {[%clk 0:00:05]} 46. Kxe3 {[%clk 0:00:05]}  Kg4 {[%clk 0:00:06]} 47. Rc3 {[%clk 0:00:06]}  f5 {[%clk 0:00:05]} 48. Ke2 {[%clk 0:00:05]}  b4 {[%clk 0:00:04]} 49. axb4 {[%clk 0:00:05]}  axb4 {[%clk 0:00:04]} 50. Rb3 {[%clk 0:00:05]}  Rd4 {[%clk 0:00:05]} 51. Ke3 {[%clk 0:00:04]}  Rc4 {[%clk 0:00:05]} 52. Kd3 {[%clk 0:00:05]}  Re4 {[%clk 0:00:05]} 53. Kd2 {[%clk 0:00:04]}  Rd4+ {[%clk 0:00:05]} 54. Kc2 {[%clk 0:00:04]}  Re4 {[%clk 0:00:04]} 55. Rd3 {[%clk 0:00:05]}  Rc4+ {[%clk 0:00:03]} 56. Kb3 {[%clk 0:00:05]}  Re4 {[%clk 0:00:04]} 57. Ka4 {[%clk 0:00:06]}  Kh3 {[%clk 0:00:03]} 58. b3 {[%clk 0:00:06]}  Kg4 {[%clk 0:00:03]} 59. Kb5 {[%clk 0:00:06]}  Kh3 {[%clk 0:00:03]} 60. Rd5 {[%clk 0:00:06]}  Kg4 {[%clk 0:00:03]} 61. Rd3 {[%clk 0:00:06]}  Kh3 {[%clk 0:00:04]} 62. Ka5 {[%clk 0:00:06]}  Kg4 {[%clk 0:00:04]} 63. Ka4 {[%clk 0:00:06]}  Kh3 {[%clk 0:00:04]} 64. Rd5 {[%clk 0:00:06]}  Kg4 {[%clk 0:00:04]} 65. Rb5 {[%clk 0:00:06]}  Re3 {[%clk 0:00:04]} 66. Rxb4 {[%clk 0:00:05]}  Rxg3 {[%clk 0:00:03]} 67. Rc4 {[%clk 0:00:06]}  Rf3 {[%clk 0:00:03]} 68. b4 {[%clk 0:00:06]}  Rxf4 {[%clk 0:00:04]} 69. Rxf4+ {[%clk 0:00:06]}  Kxf4 {[%clk 0:00:04]} 70. b5 {[%clk 0:00:07]}  Ke3 {[%clk 0:00:03]} 71. b6 {[%clk 0:00:07]}  f4 {[%clk 0:00:04]} 72. b7 {[%clk 0:00:08]}  f3 {[%clk 0:00:05]} 73. b8=Q {[%clk 0:00:09]}  f2 {[%clk 0:00:05]} 74. Qg3+ {[%clk 0:00:09]}  Ke2 {[%clk 0:00:05]} 75. Qg2 {[%clk 0:00:08]}  Ke1 {[%clk 0:00:06]} 76. Qe4+ {[%clk 0:00:09]}  Kf1 {[%clk 0:00:06]} 77. Qh1+ {[%clk 0:00:07]}  Ke2 {[%clk 0:00:06]} 78. Qh2 {[%clk 0:00:05]}  Ke3 {[%clk 0:00:02]} 79. Qg2 {[%clk 0:00:04]}  Ke2 {[%clk 0:00:02]} 80. Kb3 {[%clk 0:00:04]}  Ke1 {[%clk 0:00:02]} 81. Qe4+ {[%clk 0:00:04]}  Kd2 {[%clk 0:00:02]} 82. Qg2 {[%clk 0:00:04]}  Ke1 {[%clk 0:00:02]} 83. Kc3 {[%clk 0:00:05]}  f1=Q {[%clk 0:00:01]} 84. Qd2# {[%clk 0:00:05]} 1-0


[Site "https://www.chess.com"]

[Event "Titled Tuesday Blitz March 01 Late 2022"]
[White "Jakubowska, Anna"]
[Black "Cagara, Paulina"]
[WhiteFideId "1121952"]
[BlackFideId "1124870"]
[WhiteElo "1924"]
[BlackElo "1828"]
[Result "1-0"]
[Round "04"]
[TimeControl "180+1"]
[Date "2022.03.02"]
[WhiteClock "0:01:20"]
[BlackClock "0:00:32"]

1. e4 {[%clk 0:03:00]}  c6 {[%clk 0:02:59]} 2. d3 {[%clk 0:03:00]}  d5 {[%clk 0:02:59]} 3. Nd2 {[%clk 0:03:00]}  e5 {[%clk 0:02:58]} 4. g3 {[%clk 0:03:00]}  Nf6 {[%clk 0:02:56]} 5. Bg2 {[%clk 0:03:00]}  Be6 {[%clk 0:02:55]} 6. f4 {[%clk 0:02:58]}  exf4 {[%clk 0:02:53]} 7. gxf4 {[%clk 0:02:58]}  Bg4 {[%clk 0:02:51]} 8. Ngf3 {[%clk 0:02:56]}  dxe4 {[%clk 0:02:45]} 9. dxe4 {[%clk 0:02:56]}  Bc5 {[%clk 0:02:44]} 10. Qe2 {[%clk 0:02:49]}  O-O {[%clk 0:02:40]} 11. Nb3 {[%clk 0:02:49]}  Nxe4 {[%clk 0:02:02]} 12. Qxe4 {[%clk 0:02:46]}  Re8 {[%clk 0:02:01]} 13. Ne5 {[%clk 0:02:45]}  Qh4+ {[%clk 0:01:59]} 14. Kd2 {[%clk 0:02:37]}  Qf2+ {[%clk 0:01:55]} 15. Kc3 {[%clk 0:02:36]}  Na6 {[%clk 0:01:34]} 16. Nxg4 {[%clk 0:02:32]}  Qh4 {[%clk 0:01:06]} 17. Nxc5 {[%clk 0:02:25]}  Rxe4 {[%clk 0:01:04]} 18. Nxe4 {[%clk 0:02:25]}  Qxg4 {[%clk 0:01:02]} 19. Rg1 {[%clk 0:02:21]}  b5 {[%clk 0:01:00]} 20. Be3 {[%clk 0:02:19]}  Rd8 {[%clk 0:00:58]} 21. Nf6+ {[%clk 0:02:11]}  gxf6 {[%clk 0:00:56]} 22. Be4 {[%clk 0:02:02]}  Qxg1 {[%clk 0:00:55]} 23. Rxg1+ {[%clk 0:02:01]}  Kf8 {[%clk 0:00:55]} 24. a3 {[%clk 0:01:54]}  Ke7 {[%clk 0:00:53]} 25. Bxa7 {[%clk 0:01:49]}  c5 {[%clk 0:00:49]} 26. Bb7 {[%clk 0:01:42]}  b4+ {[%clk 0:00:44]} 27. Kb3 {[%clk 0:01:38]}  c4+ {[%clk 0:00:38]} 28. Kxc4 {[%clk 0:01:32]}  Rd7 {[%clk 0:00:34]} 29. Bxa6 {[%clk 0:01:28]}  Rxa7 {[%clk 0:00:34]} 30. Kb5 {[%clk 0:01:23]}  bxa3 {[%clk 0:00:33]} 31. bxa3 {[%clk 0:01:23]}  Rc7 {[%clk 0:00:33]} 32. c4 {[%clk 0:01:23]}  f5 {[%clk 0:00:32]} 33. c5 {[%clk 0:01:21]}  Ke6 {[%clk 0:00:32]} 34. Rd1 {[%clk 0:01:20]} 1-0


[Site "https://www.chess.com"]

[Event "Titled Tuesday Blitz March 01 Late 2022"]
[White "Jaracz, Pawel"]
[Black "Adewumi, Tanitoluwa"]
[WhiteFideId "1102222"]
[BlackFideId "30966396"]
[WhiteElo "2429"]
[BlackElo "2552"]
[Result "1-0"]
[Round "04"]
[TimeControl "180+1"]
[Date "2022.03.01"]
[WhiteClock "0:00:21"]
[BlackClock "0:00:09"]

1. e4 {[%clk 0:03:00]}  c6 {[%clk 0:02:43]} 2. d4 {[%clk 0:03:00]}  d5 {[%clk 0:02:44]} 3. e5 {[%clk 0:02:59]}  Bf5 {[%clk 0:02:28]} 4. Nd2 {[%clk 0:02:58]}  e6 {[%clk 0:02:27]} 5. Nb3 {[%clk 0:02:58]}  Nd7 {[%clk 0:02:26]} 6. Nf3 {[%clk 0:02:58]}  Ne7 {[%clk 0:02:22]} 7. Be2 {[%clk 0:02:58]}  Bg6 {[%clk 0:02:22]} 8. O-O {[%clk 0:02:57]}  a5 {[%clk 0:02:23]} 9. a4 {[%clk 0:02:54]}  Nf5 {[%clk 0:02:20]} 10. Bd2 {[%clk 0:02:54]}  Qb6 {[%clk 0:02:00]} 11. g4 {[%clk 0:02:45]}  Ne7 {[%clk 0:01:52]} 12. Be3 {[%clk 0:02:36]}  h5 {[%clk 0:01:50]} 13. h3 {[%clk 0:02:36]}  hxg4 {[%clk 0:01:47]} 14. hxg4 {[%clk 0:02:36]}  Be4 {[%clk 0:01:41]} 15. Nbd2 {[%clk 0:02:33]}  Bxf3 {[%clk 0:01:35]} 16. Nxf3 {[%clk 0:02:29]}  Ng6 {[%clk 0:01:35]} 17. Kg2 {[%clk 0:02:22]}  c5 {[%clk 0:01:24]} 18. c3 {[%clk 0:02:19]}  c4 {[%clk 0:01:07]} 19. Rb1 {[%clk 0:02:17]}  Qc6 {[%clk 0:01:02]} 20. b3 {[%clk 0:02:16]}  Nb6 {[%clk 0:00:59]} 21. bxc4 {[%clk 0:01:43]}  dxc4 {[%clk 0:00:59]} 22. Kg3 {[%clk 0:01:24]}  Nd5 {[%clk 0:00:56]} 23. Qc2 {[%clk 0:01:20]}  Be7 {[%clk 0:00:47]} 24. Rh1 {[%clk 0:01:18]}  Rxh1 {[%clk 0:00:47]} 25. Rxh1 {[%clk 0:01:18]}  Kd7 {[%clk 0:00:48]} 26. Rh7 {[%clk 0:01:12]}  Rg8 {[%clk 0:00:38]} 27. Nd2 {[%clk 0:01:11]}  Nxe3 {[%clk 0:00:34]} 28. fxe3 {[%clk 0:01:11]}  Bh4+ {[%clk 0:00:30]} 29. Kh2 {[%clk 0:00:58]}  Bg5 {[%clk 0:00:30]} 30. Bf3 {[%clk 0:00:56]}  Qc7 {[%clk 0:00:28]} 31. Qe4 {[%clk 0:00:45]}  Kc8 {[%clk 0:00:24]} 32. Kg3 {[%clk 0:00:40]}  f5 {[%clk 0:00:24]} 33. gxf5 {[%clk 0:00:37]}  Ne7 {[%clk 0:00:22]} 34. fxe6 {[%clk 0:00:35]}  Bxe3 {[%clk 0:00:22]} 35. Nxc4 {[%clk 0:00:32]}  Bh6 {[%clk 0:00:15]} 36. d5 {[%clk 0:00:29]}  Qc5 {[%clk 0:00:11]} 37. d6 {[%clk 0:00:24]}  Qg1+ {[%clk 0:00:11]} 38. Bg2 {[%clk 0:00:25]}  Rf8 {[%clk 0:00:09]} 39. Qxb7+ {[%clk 0:00:21]}  Kd8 {[%clk 0:00:09]} 40. Qd7# {[%clk 0:00:21]} 1-0


[Site "https://www.chess.com"]

[Event "Titled Tuesday Blitz March 01 Late 2022"]
[White "Kim, Sergey"]
[Black "Janturin, Artur"]
[WhiteFideId "13700570"]
[BlackFideId "4130022"]
[WhiteElo "2611"]
[BlackElo "2333"]
[Result "1-0"]
[Round "04"]
[TimeControl "180+1"]
[Date "2022.03.02"]
[WhiteClock "0:01:03"]
[BlackClock "0:00:04"]

1. d4 {[%clk 0:03:00]}  e6 {[%clk 0:02:56]} 2. c4 {[%clk 0:03:00]}  b6 {[%clk 0:02:55]} 3. Nc3 {[%clk 0:03:00]}  Bb4 {[%clk 0:02:54]} 4. Qc2 {[%clk 0:02:59]}  Bb7 {[%clk 0:02:54]} 5. a3 {[%clk 0:02:59]}  Bxc3+ {[%clk 0:02:53]} 6. Qxc3 {[%clk 0:02:59]}  f5 {[%clk 0:02:53]} 7. Nf3 {[%clk 0:02:59]}  Nf6 {[%clk 0:02:52]} 8. g3 {[%clk 0:03:00]}  O-O {[%clk 0:02:49]} 9. Bg2 {[%clk 0:03:00]}  d6 {[%clk 0:02:48]} 10. O-O {[%clk 0:03:00]}  Nbd7 {[%clk 0:02:48]} 11. b3 {[%clk 0:02:59]}  Qe8 {[%clk 0:02:46]} 12. Bb2 {[%clk 0:02:58]}  Qh5 {[%clk 0:02:45]} 13. Rad1 {[%clk 0:02:55]}  Be4 {[%clk 0:02:36]} 14. b4 {[%clk 0:02:49]}  Rae8 {[%clk 0:02:26]} 15. a4 {[%clk 0:02:45]}  Ng4 {[%clk 0:02:04]} 16. h3 {[%clk 0:02:43]}  Ngf6 {[%clk 0:02:04]} 17. a5 {[%clk 0:02:34]}  g5 {[%clk 0:02:00]} 18. d5 {[%clk 0:02:34]}  e5 {[%clk 0:01:56]} 19. Ne1 {[%clk 0:02:27]}  Bxg2 {[%clk 0:01:50]} 20. Kxg2 {[%clk 0:02:27]}  f4 {[%clk 0:01:26]} 21. Qf3 {[%clk 0:02:17]}  Qg6 {[%clk 0:01:24]} 22. Qd3 {[%clk 0:02:04]}  e4 {[%clk 0:01:15]} 23. Qc3 {[%clk 0:02:04]}  Ne5 {[%clk 0:01:14]} 24. g4 {[%clk 0:01:57]}  h5 {[%clk 0:01:10]} 25. f3 {[%clk 0:01:57]}  Re7 {[%clk 0:01:00]} 26. Qb3 {[%clk 0:01:52]}  Rff7 {[%clk 0:00:52]} 27. Bxe5 {[%clk 0:01:50]}  Rxe5 {[%clk 0:00:52]} 28. Rh1 {[%clk 0:01:37]}  Rh7 {[%clk 0:00:51]} 29. Qc2 {[%clk 0:01:31]}  hxg4 {[%clk 0:00:34]} 30. fxg4 {[%clk 0:01:25]}  f3+ {[%clk 0:00:18]} 31. exf3 {[%clk 0:01:15]}  exf3+ {[%clk 0:00:19]} 32. Kxf3 {[%clk 0:01:16]}  Qf7 {[%clk 0:00:11]} 33. Kg2 {[%clk 0:01:12]}  Ne4 {[%clk 0:00:07]} 34. Rf1 {[%clk 0:01:08]}  Qe7 {[%clk 0:00:04]} 35. Nf3 {[%clk 0:01:03]} 1-0


[Site "https://www.chess.com"]

[Event "Titled Tuesday Blitz March 01 Late 2022"]
[White "Kollars, Dmitrij"]
[Black "Hjartarson, Johann"]
[WhiteFideId "12909572"]
[BlackFideId "2300044"]
[WhiteElo "2584"]
[BlackElo "2484"]
[Result "1-0"]
[Round "04"]
[TimeControl "180+1"]
[Date "2022.03.01"]
[WhiteClock "0:00:16"]
[BlackClock "0:00:30"]

1. e4 {[%clk 0:03:00]}  g6 {[%clk 0:02:59]} 2. d4 {[%clk 0:03:01]}  Bg7 {[%clk 0:02:59]} 3. Nf3 {[%clk 0:03:01]}  d6 {[%clk 0:02:59]} 4. Bc4 {[%clk 0:03:01]}  a6 {[%clk 0:02:57]} 5. c3 {[%clk 0:02:56]}  b5 {[%clk 0:02:55]} 6. Bd3 {[%clk 0:02:56]}  Bb7 {[%clk 0:02:51]} 7. a4 {[%clk 0:02:56]}  c6 {[%clk 0:02:51]} 8. O-O {[%clk 0:02:56]}  Nd7 {[%clk 0:02:50]} 9. Re1 {[%clk 0:02:51]}  e5 {[%clk 0:02:47]} 10. Nbd2 {[%clk 0:02:51]}  Ngf6 {[%clk 0:02:45]} 11. b3 {[%clk 0:02:49]}  Qc7 {[%clk 0:02:38]} 12. Bb2 {[%clk 0:02:47]}  O-O {[%clk 0:02:37]} 13. Qc2 {[%clk 0:02:47]}  Rfe8 {[%clk 0:02:36]} 14. h3 {[%clk 0:02:36]}  Rac8 {[%clk 0:02:33]} 15. Rac1 {[%clk 0:02:29]}  Qb8 {[%clk 0:02:27]} 16. axb5 {[%clk 0:02:21]}  axb5 {[%clk 0:02:27]} 17. c4 {[%clk 0:02:14]}  exd4 {[%clk 0:02:24]} 18. Bxd4 {[%clk 0:02:11]}  c5 {[%clk 0:02:17]} 19. Bxf6 {[%clk 0:02:06]}  Nxf6 {[%clk 0:02:15]} 20. cxb5 {[%clk 0:02:05]}  d5 {[%clk 0:02:14]} 21. exd5 {[%clk 0:02:03]}  Nxd5 {[%clk 0:02:10]} 22. Rxe8+ {[%clk 0:01:54]}  Rxe8 {[%clk 0:02:09]} 23. Qxc5 {[%clk 0:01:54]}  Nf4 {[%clk 0:02:00]} 24. Bf1 {[%clk 0:01:54]}  Rc8 {[%clk 0:01:40]} 25. Qa3 {[%clk 0:01:53]}  Rxc1 {[%clk 0:01:36]} 26. Qxc1 {[%clk 0:01:54]}  Qd6 {[%clk 0:01:33]} 27. Nc4 {[%clk 0:01:41]}  Qf6 {[%clk 0:01:30]} 28. Nce5 {[%clk 0:01:25]}  Bxf3 {[%clk 0:01:18]} 29. Qc8+ {[%clk 0:01:15]}  Bf8 {[%clk 0:01:18]} 30. Nxf3 {[%clk 0:00:38]}  Kg7 {[%clk 0:01:16]} 31. g3 {[%clk 0:00:30]}  Nd5 {[%clk 0:01:08]} 32. Bg2 {[%clk 0:00:25]}  Nc3 {[%clk 0:00:43]} 33. Qc4 {[%clk 0:00:21]}  Bd6 {[%clk 0:00:34]} 34. b6 {[%clk 0:00:19]}  Bxg3 {[%clk 0:00:31]} 35. fxg3 {[%clk 0:00:16]}  Qxb6+ {[%clk 0:00:30]} 36. Qd4+ {[%clk 0:00:16]} 1-0


[Site "https://www.chess.com"]

[Event "Titled Tuesday Blitz March 01 Late 2022"]
[White "Kozak, Adam"]
[Black "Guz, Ari"]
[WhiteFideId "753246"]
[BlackFideId "2825759"]
[WhiteElo "2459"]
[BlackElo "1913"]
[Result "1/2-1/2"]
[Round "04"]
[TimeControl "180+1"]
[Date "2022.03.01"]
[WhiteClock "0:00:02"]
[BlackClock "0:00:10"]

1. e4 {[%clk 0:02:59]}  c5 {[%clk 0:02:59]} 2. Nf3 {[%clk 0:02:59]}  e6 {[%clk 0:02:59]} 3. b3 {[%clk 0:02:58]}  Nc6 {[%clk 0:02:54]} 4. Bb2 {[%clk 0:02:57]}  Nf6 {[%clk 0:02:54]} 5. e5 {[%clk 0:02:57]}  Nd5 {[%clk 0:02:55]} 6. Nc3 {[%clk 0:02:57]}  Nxc3 {[%clk 0:02:55]} 7. Bxc3 {[%clk 0:02:56]}  Be7 {[%clk 0:02:55]} 8. Bd3 {[%clk 0:02:55]}  O-O {[%clk 0:02:53]} 9. Qe2 {[%clk 0:02:55]}  f5 {[%clk 0:02:47]} 10. O-O-O {[%clk 0:02:53]}  Nb4 {[%clk 0:02:41]} 11. Kb1 {[%clk 0:02:51]}  Nxd3 {[%clk 0:02:31]} 12. Qxd3 {[%clk 0:02:52]}  b6 {[%clk 0:02:30]} 13. Ng1 {[%clk 0:02:47]}  Bb7 {[%clk 0:02:29]} 14. f3 {[%clk 0:02:48]}  a5 {[%clk 0:02:24]} 15. Ne2 {[%clk 0:02:44]}  a4 {[%clk 0:02:23]} 16. Nf4 {[%clk 0:02:33]}  Bg5 {[%clk 0:01:40]} 17. g3 {[%clk 0:02:28]}  Bc6 {[%clk 0:01:34]} 18. Qc4 {[%clk 0:02:24]}  axb3 {[%clk 0:01:21]} 19. axb3 {[%clk 0:02:22]}  Bxf4 {[%clk 0:01:16]} 20. Qxf4 {[%clk 0:02:21]}  Qc8 {[%clk 0:01:14]} 21. Kb2 {[%clk 0:02:19]}  Qb7 {[%clk 0:01:12]} 22. Rhf1 {[%clk 0:02:19]}  Ra7 {[%clk 0:01:11]} 23. Ra1 {[%clk 0:02:17]}  Rxa1 {[%clk 0:01:10]} 24. Rxa1 {[%clk 0:02:17]}  Bxf3 {[%clk 0:01:09]} 25. Qg5 {[%clk 0:02:16]}  Ra8 {[%clk 0:01:01]} 26. Rxa8+ {[%clk 0:02:16]}  Qxa8 {[%clk 0:01:02]} 27. Qe7 {[%clk 0:02:16]}  Bc6 {[%clk 0:01:03]} 28. d4 {[%clk 0:02:15]}  cxd4 {[%clk 0:00:59]} 29. Bxd4 {[%clk 0:02:15]}  b5 {[%clk 0:00:59]} 30. Bc5 {[%clk 0:02:13]}  Qc8 {[%clk 0:00:59]} 31. h4 {[%clk 0:02:11]}  Be4 {[%clk 0:00:58]} 32. h5 {[%clk 0:02:09]}  h6 {[%clk 0:00:59]} 33. c3 {[%clk 0:02:06]}  Bf3 {[%clk 0:00:57]} 34. Ka3 {[%clk 0:01:59]}  Bxh5 {[%clk 0:00:55]} 35. Kb4 {[%clk 0:02:00]}  Bf3 {[%clk 0:00:54]} 36. Qd6 {[%clk 0:01:55]}  Bc6 {[%clk 0:00:53]} 37. Qe7 {[%clk 0:01:55]}  Qa8 {[%clk 0:00:50]} 38. Bd6 {[%clk 0:01:54]}  Qc8 {[%clk 0:00:37]} 39. Bc5 {[%clk 0:01:54]}  Qa8 {[%clk 0:00:27]} 40. Bb6 {[%clk 0:01:53]}  Qb7 {[%clk 0:00:24]} 41. Qd8+ {[%clk 0:01:48]}  Kh7 {[%clk 0:00:25]} 42. Bc7 {[%clk 0:01:40]}  Qa6 {[%clk 0:00:22]} 43. Qe7 {[%clk 0:01:24]}  Qa7 {[%clk 0:00:15]} 44. Bd6 {[%clk 0:01:23]}  Qe3 {[%clk 0:00:15]} 45. c4 {[%clk 0:00:56]}  bxc4 {[%clk 0:00:15]} 46. bxc4 {[%clk 0:00:56]}  Qb6+ {[%clk 0:00:15]} 47. Kc3 {[%clk 0:00:55]}  Qe3+ {[%clk 0:00:15]} 48. Kb4 {[%clk 0:00:55]}  Qxg3 {[%clk 0:00:16]} 49. Ka5 {[%clk 0:00:54]}  f4 {[%clk 0:00:14]} 50. Qf7 {[%clk 0:00:51]}  f3 {[%clk 0:00:14]} 51. Kb6 {[%clk 0:00:51]}  f2 {[%clk 0:00:14]} 52. Bc5 {[%clk 0:00:48]}  f1=Q {[%clk 0:00:11]} 53. Qxf1 {[%clk 0:00:47]}  Qxe5 {[%clk 0:00:12]} 54. Qd3+ {[%clk 0:00:42]}  Qf5 {[%clk 0:00:12]} 55. Qg3 {[%clk 0:00:41]}  g5 {[%clk 0:00:12]} 56. Bd6 {[%clk 0:00:39]}  h5 {[%clk 0:00:12]} 57. Kc7 {[%clk 0:00:34]}  h4 {[%clk 0:00:12]} 58. Qh2 {[%clk 0:00:33]}  h3 {[%clk 0:00:12]} 59. Qg3 {[%clk 0:00:33]}  Kh6 {[%clk 0:00:10]} 60. Be5 {[%clk 0:00:30]}  Kg6 {[%clk 0:00:10]} 61. Bd6 {[%clk 0:00:28]}  g4 {[%clk 0:00:09]} 62. Qh4 {[%clk 0:00:28]}  Qh5 {[%clk 0:00:09]} 63. Qe7 {[%clk 0:00:27]}  Qf5 {[%clk 0:00:09]} 64. Qd8 {[%clk 0:00:23]}  Qf7 {[%clk 0:00:09]} 65. Be5 {[%clk 0:00:16]}  Kf5 {[%clk 0:00:08]} 66. Bd6 {[%clk 0:00:14]}  Kg6 {[%clk 0:00:08]} 67. Qh4 {[%clk 0:00:14]}  Qf5 {[%clk 0:00:07]} 68. c5 {[%clk 0:00:13]}  e5 {[%clk 0:00:07]} 69. Qh8 {[%clk 0:00:12]}  e4 {[%clk 0:00:06]} 70. Be5 {[%clk 0:00:12]}  Qf7 {[%clk 0:00:07]} 71. Qh4 {[%clk 0:00:11]}  Kf5 {[%clk 0:00:07]} 72. Bd4 {[%clk 0:00:09]}  e3 {[%clk 0:00:07]} 73. Bxe3 {[%clk 0:00:08]}  Ke4 {[%clk 0:00:07]} 74. Bg5 {[%clk 0:00:06]}  Qf5 {[%clk 0:00:07]} 75. Be7 {[%clk 0:00:05]}  Qe5+ {[%clk 0:00:07]} 76. Bd6 {[%clk 0:00:05]}  Qf5 {[%clk 0:00:07]} 77. Qe1+ {[%clk 0:00:05]}  Kd5 {[%clk 0:00:08]} 78. Qe3 {[%clk 0:00:03]}  Qe4 {[%clk 0:00:08]} 79. Qg5+ {[%clk 0:00:03]}  Kc4 {[%clk 0:00:08]} 80. Qd2 {[%clk 0:00:03]}  Qd3 {[%clk 0:00:08]} 81. Qc1+ {[%clk 0:00:03]}  Kd5 {[%clk 0:00:08]} 82. Qf4 {[%clk 0:00:02]}  Qe4 {[%clk 0:00:08]} 83. Qg5+ {[%clk 0:00:02]}  Kc4 {[%clk 0:00:08]} 84. Qc1+ {[%clk 0:00:02]}  Kd5 {[%clk 0:00:09]} 85. Kb6 {[%clk 0:00:03]}  Qb4+ {[%clk 0:00:08]} 86. Kc7 {[%clk 0:00:02]}  Qe4 {[%clk 0:00:09]} 87. Kc8 {[%clk 0:00:02]}  Qe8+ {[%clk 0:00:09]} 88. Kc7 {[%clk 0:00:02]}  Qe4 {[%clk 0:00:10]} 1/2-1/2


[Site "https://www.chess.com"]